bitfinex/quotes_BTCUSD_20240821
["timestamp","ask_amount","ask_price","bid_price","bid_amount"]
[1724252958081,0.51091176,59438.0,59437.0,0.02906692]
[1724252958359,0.507549,59438.0,59437.0,0.02906692]
[1724252958601,1.015134,59438.0,59437.0,0.02906692]
[1724252958817,1.015134,59438.0,59437.0,0.0109042]
[1724252958818,1.74272198,59438.0,59437.0,0.0109042]
[1724252959227,1.73972198,59438.0,59437.0,0.0109042]
[1724252959648,1.74072198,59438.0,59437.0,0.0109042]
[1724252959856,1.73972198,59438.0,59437.0,0.0059042]
[1724252960058,1.74672198,59438.0,59437.0,0.0019042]
[1724252960270,1.74572198,59438.0,59437.0,0.0019042]
[1724252960505,1.74572198,59438.0,59437.0,0.0009042]
[1724252960506,1.73972198,59438.0,59437.0,0.0009042]
[1724252960933,1.74572198,59438.0,59437.0,0.0019042]
[1724252961338,1.75642344,59438.0,59437.0,0.0019042]
[1724252961556,1.74642344,59438.0,59437.0,0.0019042]
[1724252961762,1.74542344,59438.0,59437.0,0.0019042]
[1724252962443,1.24493546,59438.0,59437.0,0.0019042]
[1724252962648,1.07483546,59438.0,59437.0,0.0019042]
[1724252963105,1.065134,59438.0,59437.0,0.0019042]
[1724252963345,0.267064,59438.0,59437.0,0.0019042]
[1724252963770,0.008,59438.0,59437.0,0.02006692]
[1724252963966,0.008,59438.0,59437.0,0.0019042]
[1724252964173,0.008,59438.0,59437.0,0.02006692]
[1724252964388,0.008,59438.0,59437.0,0.0019042]
[1724252964585,0.008,59438.0,59437.0,0.02006692]
[1724252965870,0.008,59438.0,59437.0,0.18831192]
[1724252966502,0.008,59438.0,59437.0,0.02006692]
[1724252967600,0.008,59438.0,59437.0,0.52480192]
[1724252967816,0.008,59438.0,59437.0,1.02689192]
[1724252968683,0.006,59438.0,59437.0,1.02689192]
[1724252968894,0.006,59438.0,59437.0,1.03189192]
[1724252968895,0.006822,59438.0,59437.0,1.03189192]
[1724252969095,0.007822,59438.0,59437.0,1.03189192]
[1724252969541,0.001822,59438.0,59437.0,1.03089192]
[1724252969984,0.002822,59438.0,59437.0,2.0079982]
[1724252970203,0.002822,59438.0,59437.0,2.78992033]
[1724252970412,1e-08,59438.0,59437.0,2.89192033]
[1724252970657,0.000823,59443.0,59442.0,1.80532128]
[1724252970881,0.49229154,59463.0,59442.0,1.80532128]
[1724252970882,0.49229154,59463.0,59455.0,0.793882]
[1724252971101,0.49229154,59463.0,59455.0,2.02456098]
[1724252971314,0.000822,59465.0,59455.0,2.41555179]
[1724252971520,0.000822,59465.0,59455.0,2.88073873]
[1724252971719,0.000822,59465.0,59455.0,2.87879645]
[1724252971935,0.000822,59465.0,59455.0,2.8787895]
[1724252972160,0.00161955,59456.0,59455.0,2.88573178]
[1724252972369,0.01881615,59475.0,59474.0,0.16814]
[1724252972800,0.01881615,59475.0,59474.0,0.18595064]
[1724252973017,0.1306,59484.0,59477.0,0.33626]
[1724252973282,0.168104,59487.0,59482.0,0.1583]
[1724252973506,0.17,59492.0,59487.0,0.168103]
[1724252973507,0.16809,59492.0,59487.0,0.168103]
[1724252973714,0.02637123,59493.0,59482.0,0.1583]
[1724252973715,0.168101,59488.0,59483.0,0.01772507]
[1724252973920,0.00336276,59491.0,59482.0,0.494535]
[1724252973921,0.168096,59490.0,59482.0,0.494535]
[1724252974153,0.168099,59489.0,59484.0,0.18582656]
[1724252974360,0.168099,59489.0,59484.0,0.168111]
[1724252974577,0.168099,59489.0,59482.0,0.494535]
[1724252974578,0.168096,59490.0,59487.0,0.002]
[1724252975018,0.168096,59490.0,59488.0,0.01767754]
[1724252975231,0.170096,59490.0,59488.0,0.01767754]
[1724252975441,0.168096,59490.0,59488.0,0.01767754]
[1724252975652,0.011,59492.0,59488.0,0.18577754]
[1724252975653,0.179091,59492.0,59488.0,0.18577754]
[1724252975875,0.02637123,59493.0,59492.0,0.168089]
[1724252976078,0.00824,59497.0,59494.0,0.168084]
[1724252976305,0.00824,59497.0,59494.0,0.504252]
[1724252976512,0.00824,59497.0,59494.0,0.85804051]
[1724252976731,0.00824,59497.0,59494.0,1.66561149]
[1724252976945,0.00824,59497.0,59494.0,1.80412826]
[1724252977368,0.00824,59497.0,59494.0,2.14323854]
[1724252977591,0.00824,59497.0,59494.0,2.14129626]
[1724252977795,0.00824,59497.0,59494.0,2.14429626]
[1724252978241,0.00824,59497.0,59494.0,2.11977949]
[1724252978442,0.00924,59495.0,59494.0,2.11977949]
[1724252978657,0.00924,59495.0,59494.0,2.14129626]
[1724252978855,0.01024,59495.0,59494.0,2.15529626]
[1724252979269,0.01024,59495.0,59494.0,2.49340654]
[1724252979499,0.00824,59497.0,59496.0,1.34349128]
[1724252979688,0.00824,59497.0,59496.0,1.54206875]
[1724252979890,0.00824,59497.0,59496.0,2.25892654]
[1724252980110,0.00824,59497.0,59496.0,2.49292654]
[1724252980316,0.00824,59497.0,59496.0,2.15676954]
[1724252980520,0.00822,59502.0,59501.0,1.349148]
[1724252980748,0.00822,59502.0,59501.0,1.65166775]
[1724252980946,0.00822,59502.0,59501.0,1.62970498]
[1724252981585,0.00822,59502.0,59501.0,1.19357698]
[1724252981786,0.00922,59502.0,59501.0,1.20757698]
[1724252982227,0.00922,59502.0,59501.0,0.371318]
[1724252982434,0.00922,59502.0,59501.0,0.031554]
[1724252982435,0.177281,59502.0,59501.0,0.031554]
[1724252982642,0.513404,59502.0,59501.0,0.031554]
[1724252982779,1.04288827,59502.0,59501.0,0.031554]
[1724252982961,1.37901127,59502.0,59501.0,0.014]
[1724252983163,1.48001127,59502.0,59501.0,0.025]
[1724252983383,1.62399506,59502.0,59501.0,0.025]
[1724252983589,0.003,59499.0,59484.0,0.168111]
[1724252983799,0.168119,59482.0,59479.0,0.1717]
[1724252984035,0.168119,59482.0,59473.0,0.500086]
[1724252984036,0.336237,59482.0,59473.0,0.500086]
[1724252984405,0.168124,59480.0,59476.0,0.168133]
[1724252984634,0.336227,59484.0,59467.0,0.465719]
[1724252984635,0.00336276,59479.0,59468.0,0.33631]
[1724252984841,0.168136,59476.0,59469.0,0.336309]
[1724252985040,0.336259,59478.0,59474.0,0.168139]
[1724252985041,0.16813,59478.0,59474.0,0.168139]
[1724252985255,0.16813,59478.0,59471.0,0.336292]
[1724252985256,0.168125,59480.0,59475.0,0.168136]
[1724252985460,0.1276,59485.0,59468.0,0.16400298]
[1724252985461,0.168116,59483.0,59474.0,0.336278]
[1724252985665,0.336215,59486.0,59464.0,0.001]
[1724252985666,0.001,59482.0,59473.0,0.008]
[1724252985908,0.002,59482.0,59479.0,0.009]
[1724252986519,0.002,59482.0,59473.0,0.008]
[1724252986520,0.00436276,59482.0,59473.0,0.008]
[1724252986723,0.003,59480.0,59475.0,0.168137]
[1724252986925,0.168131,59478.0,59472.0,0.168144]
[1724252987131,0.168133,59477.0,59473.0,0.168143]
[1724252987335,0.1324,59476.0,59469.0,0.004]
[1724252987541,0.168147,59472.0,59469.0,0.004]
[1724252987973,0.300536,59476.0,59471.0,0.168148]
[1724252988638,0.300536,59476.0,59463.0,0.16400298]
[1724252988639,0.1324,59476.0,59463.0,0.16400298]
[1724252988845,0.1324,59476.0,59462.0,0.1563]
[1724252988846,0.168136,59476.0,59471.0,0.168148]
[1724252989047,0.168136,59476.0,59475.0,0.003]
[1724252989458,0.36261305,59481.0,59475.0,0.003]
[1724252989459,0.02636905,59481.0,59477.0,0.168131]
[1724252989698,0.02636905,59481.0,59478.0,0.168127]
[1724252989922,0.02636905,59481.0,59478.0,0.18640483]
[1724252990126,0.02636905,59481.0,59479.0,0.168125]
[1724252990537,0.472627,59484.0,59480.0,0.168122]
[1724252990538,0.1364,59484.0,59480.0,0.168122]
[1724252990742,0.168117,59483.0,59480.0,0.01825881]
[1724252990960,0.16812,59481.0,59480.0,0.01825881]
[1724252991158,0.16811,59485.0,59481.0,0.16812]
[1724252991362,0.168113,59484.0,59479.0,0.168123]
[1724252991568,0.168113,59484.0,59482.0,0.0182398]
[1724252991774,0.168113,59484.0,59479.0,0.168123]
[1724252991992,0.168113,59484.0,59477.0,0.672528]
[1724252991993,0.168113,59484.0,59483.0,0.01823029]
[1724252992187,0.336215,59486.0,59480.0,0.170123]
[1724252992446,0.36256886,59488.0,59483.0,0.01823029]
[1724252992447,0.33622,59485.0,59483.0,0.01823029]
[1724252992652,0.168117,59483.0,59480.0,0.002]
[1724252992878,0.16812,59481.0,59480.0,0.002]
[1724252993092,0.504361,59481.0,59480.0,0.002]
[1724252993303,1.176843,59481.0,59480.0,0.002]
[1724252993534,0.168143,59473.0,59469.0,0.333453]
[1724252993960,0.336264,59477.0,59469.0,0.501608]
[1724252993961,0.168133,59477.0,59469.0,0.501608]
[1724252994168,0.168133,59477.0,59473.0,0.168142]
[1724252994385,0.168138,59475.0,59471.0,0.168148]
[1724252994585,0.168139,59475.0,59471.0,0.168148]
[1724252995123,0.168141,59474.0,59471.0,0.168148]
[1724252995324,0.168139,59475.0,59471.0,0.168148]
[1724252995534,0.168141,59474.0,59471.0,0.168148]
[1724252995777,0.168141,59474.0,59469.0,0.1653]
[1724252995778,0.168141,59474.0,59470.0,0.168151]
[1724252996556,0.002,59475.0,59473.0,0.168142]
[1724252996781,0.168144,59473.0,59471.0,0.002]
[1724252996985,0.168142,59474.0,59470.0,0.168149]
[1724252997157,0.336285,59474.0,59469.0,0.1653]
[1724252997378,0.168141,59474.0,59470.0,0.171151]
[1724252997579,0.168141,59474.0,59470.0,0.168151]
[1724252998007,0.168141,59474.0,59471.0,0.004]
[1724252998217,0.001,59474.0,59473.0,0.168141]
[1724252998425,0.001,59474.0,59473.0,0.504428]
[1724252998660,0.001,59474.0,59473.0,0.840715]
[1724252998862,0.168115,59483.0,59479.0,0.168125]
[1724252999079,0.168118,59482.0,59478.0,0.168129]
[1724253000134,0.336213,59486.0,59480.0,0.168123]
[1724253000354,0.168105,59487.0,59480.0,0.50437]
[1724253000537,0.168108,59486.0,59480.0,0.50437]
[1724253000740,0.168103,59487.0,59480.0,0.50437]
[1724253000954,0.296099,59489.0,59480.0,0.50437]
[1724253001183,0.04936408,59541.0,59480.0,0.50437]
[1724253001184,0.1267,59495.0,59480.0,1.17021998]
[1724253001334,0.168077,59497.0,59493.0,0.168085]
[1724253001551,0.49229154,59498.0,59491.0,0.50178]
[1724253001552,0.66036554,59498.0,59494.0,0.168084]
[1724253001738,0.33614,59499.0,59494.0,0.168084]
[1724253001739,0.168075,59497.0,59494.0,0.168084]
[1724253001916,0.168075,59497.0,59491.0,0.1656]
[1724253001917,0.02636181,59497.0,59493.0,0.336173]
[1724253002123,0.02636181,59497.0,59496.0,0.168078]
[1724253002319,0.02636181,59497.0,59494.0,0.336167]
[1724253002523,0.02636181,59497.0,59495.0,0.168078]
[1724253002948,0.02936181,59497.0,59495.0,0.168078]
[1724253003170,0.02936181,59497.0,59493.0,0.168084]
[1724253003387,0.02936181,59497.0,59486.0,0.1286]
[1724253003388,0.66582374,59496.0,59486.0,0.1578]
[1724253003609,0.66582374,59496.0,59465.0,0.41614281]
[1724253003610,0.1306,59494.0,59481.0,0.1578]
[1724253004008,0.336195,59490.0,59483.0,0.168113]
[1724253004217,0.13396276,59494.0,59481.0,0.1578]
[1724253004218,0.168113,59484.0,59481.0,0.1578]
[1724253004446,0.63457,59480.0,59479.0,0.0009031]
[1724253004896,0.298323,59480.0,59479.0,0.01917142]
[1724253005088,0.298323,59480.0,59479.0,0.0009031]
[1724253005460,0.63457,59480.0,59479.0,0.0009031]
[1724253005660,0.32468977,59480.0,59479.0,0.0009031]
[1724253006067,0.02636677,59480.0,59479.0,0.01917142]
[1724253006275,0.02616448,59480.0,59479.0,0.01917142]
[1724253006707,0.02616448,59480.0,59479.0,0.68905042]
[1724253007116,0.02616448,59480.0,59479.0,1.02530342]
[1724253007341,0.168102,59488.0,59483.0,0.168113]
[1724253007770,0.168102,59488.0,59484.0,0.18633278]
[1724253007976,0.168105,59487.0,59484.0,0.01822078]
[1724253008542,0.168105,59487.0,59485.0,0.01821128]
[1724253008727,0.168106,59486.0,59485.0,0.01821128]
[1724253008974,0.336213,59486.0,59479.0,0.0099031]
[1724253009197,0.168113,59484.0,59480.0,0.168121]
[1724253009401,0.168109,59485.0,59480.0,0.336245]
[1724253009603,0.336204,59488.0,59480.0,0.336245]
[1724253009604,0.33921,59487.0,59480.0,0.336245]
[1724253009804,0.003,59487.0,59481.0,0.502841]
[1724253010018,0.003,59487.0,59483.0,0.168112]
[1724253010238,0.003,59487.0,59481.0,0.1666]
[1724253010439,0.16812,59482.0,59479.0,0.0029031]
[1724253010642,0.168114,59484.0,59480.0,0.168122]
[1724253010849,0.168109,59486.0,59479.0,0.0009031]
[1724253011050,0.168109,59486.0,59482.0,0.168116]
[1724253011472,0.467686,59491.0,59484.0,0.168109]
[1724253011473,0.168099,59489.0,59484.0,0.168109]
[1724253011672,0.336175,59493.0,59485.0,0.156]
[1724253011874,0.1,59500.0,59486.0,0.16736468]
[1724253012025,0.16807,59499.0,59495.0,0.329779]
[1724253012438,0.13602,59502.0,59495.0,0.1617]
[1724253012636,0.00822,59502.0,59497.0,0.504226]
[1724253012850,0.00822,59502.0,59497.0,1.00437998]
[1724253013244,0.002821,59498.0,59497.0,0.168075]
[1724253013666,0.000821,59498.0,59497.0,0.168075]
[1724253013850,0.000821,59498.0,59497.0,0.172075]
[1724253014053,0.000821,59498.0,59497.0,0.508226]
[1724253014264,0.000821,59498.0,59497.0,0.504226]
[1724253014430,0.003821,59498.0,59497.0,0.510226]
[1724253015020,0.001821,59498.0,59497.0,0.510226]
[1724253015424,0.001821,59498.0,59497.0,1.34853098]
[1724253015630,0.001821,59498.0,59497.0,1.97208198]
[1724253015760,0.00822,59502.0,59501.0,1.176448]
[1724253015961,0.00822,59502.0,59501.0,1.50005098]
[1724253017810,0.00822,59502.0,59501.0,1.50105098]
[1724253018228,0.00822,59502.0,59501.0,1.50005098]
[1724253018475,0.00922,59502.0,59501.0,1.51405098]
[1724253018701,0.01022,59502.0,59501.0,1.52705098]
[1724253019319,0.00922,59502.0,59501.0,1.51405098]
[1724253019805,0.00822,59502.0,59501.0,1.5181102]
[1724253020233,0.00822,59502.0,59501.0,1.5321102]
[1724253020813,0.00922,59502.0,59501.0,1.5321102]
[1724253021027,0.00922,59502.0,59501.0,1.5461102]
[1724253021237,0.00822,59502.0,59501.0,1.1959822]
[1724253021441,0.00922,59502.0,59501.0,1.2089822]
[1724253022083,0.00822,59502.0,59501.0,0.70985122]
[1724253022285,0.00922,59502.0,59501.0,0.22812322]
[1724253022517,0.00922,59502.0,59501.0,1.0643822]
[1724253023148,0.00922,59502.0,59501.0,1.4005102]
[1724253023564,0.00822,59502.0,59501.0,1.3865102]
[1724253024023,0.00822,59502.0,59501.0,1.3585102]
[1724253024221,0.00922,59502.0,59501.0,0.04305922]
[1724253024453,0.177281,59502.0,59501.0,0.02905922]
[1724253024644,0.176281,59502.0,59501.0,0.01805922]
[1724253024905,0.176281,59502.0,59501.0,0.03205922]
[1724253025112,0.849527,59502.0,59501.0,0.025]
[1724253025354,0.974927,59502.0,59501.0,0.04305922]
[1724253025584,1.135227,59502.0,59501.0,0.014]
[1724253025781,0.16809,59492.0,59488.0,0.3337]
[1724253026220,0.336134,59500.0,59489.0,0.01817325]
[1724253026433,0.168065,59501.0,59497.0,0.168073]
[1724253026654,0.168071,59499.0,59496.0,0.168078]
[1724253027104,0.168066,59501.0,59497.0,0.18617223]
[1724253027319,0.168071,59499.0,59497.0,0.01809723]
[1724253027468,0.168066,59501.0,59498.0,0.168072]
[1724253027698,0.177066,59501.0,59498.0,0.168072]
[1724253027853,0.177066,59501.0,59499.0,0.01807822]
[1724253028084,0.177066,59501.0,59497.0,0.169075]
[1724253028277,0.168066,59501.0,59498.0,0.01808772]
[1724253028476,0.13362,59502.0,59498.0,0.01808772]
[1724253028680,0.16807,59499.0,59498.0,0.0029031]
[1724253028928,0.16807,59499.0,59498.0,0.0009031]
[1724253028929,1.17635298,59499.0,59498.0,0.0009031]
[1724253029153,1.51249298,59499.0,59498.0,0.0009031]
[1724253029372,0.67621,59499.0,59498.0,0.0009031]
[1724253029611,0.16807,59499.0,59498.0,0.0009031]
[1724253029829,0.168065,59501.0,59498.0,0.0009031]
[1724253030081,0.168067,59500.0,59498.0,0.0009031]
[1724253030229,0.169064,59501.0,59499.0,0.01807822]
[1724253030699,0.301681,59502.0,59499.0,0.01807822]
[1724253030898,0.00822,59502.0,59501.0,0.168064]
[1724253031100,0.00822,59502.0,59501.0,0.504192]
[1724253031328,0.00822,59502.0,59501.0,1.01437922]
[1724253031714,0.00822,59502.0,59501.0,1.00301786]
[1724253031921,0.01022,59502.0,59501.0,1.00301786]
[1724253032148,0.01022,59502.0,59501.0,1.00401786]
[1724253033093,0.00822,59502.0,59501.0,1.63524884]
[1724253033618,0.00822,59502.0,59501.0,1.50414884]
[1724253033619,0.01022,59502.0,59501.0,1.50414884]
[1724253034044,0.00822,59502.0,59501.0,1.50414884]
[1724253034443,0.00922,59502.0,59501.0,1.51414884]
[1724253034805,0.00822,59502.0,59501.0,2.01714884]
[1724253035009,0.00822,59502.0,59501.0,2.00314884]
[1724253035211,0.00922,59502.0,59501.0,2.01414884]
[1724253035447,0.00922,59502.0,59501.0,2.02814884]
[1724253035657,0.00922,59502.0,59501.0,2.01414884]
[1724253035870,0.00922,59502.0,59501.0,2.35127684]
[1724253036526,0.00824,59503.0,59502.0,1.679953]
[1724253036755,0.00824,59503.0,59502.0,1.87365143]
[1724253037203,0.000822,59507.0,59506.0,1.17835]
[1724253037421,0.000822,59507.0,59506.0,2.1359371]
[1724253037635,0.00824,59516.0,59515.0,0.505073]
[1724253037861,0.00824,59516.0,59515.0,1.50757398]
[1724253038085,0.00824,59516.0,59515.0,1.51423808]
[1724253038292,0.00824,59516.0,59515.0,2.33847836]
[1724253038529,0.00824,59516.0,59515.0,2.73933053]
[1724253038756,0.00824,59516.0,59515.0,2.8395102]
[1724253039003,0.00824,59525.0,59524.0,1.512991]
[1724253039231,0.00824,59525.0,59524.0,2.8385196]
[1724253039474,0.00824,59525.0,59524.0,2.08087814]
[1724253039666,0.00824,59525.0,59524.0,2.37127867]
[1724253039872,0.00824,59525.0,59524.0,2.39755824]
[1724253040085,0.00824,59525.0,59524.0,2.00391596]
[1724253040514,0.00824,59525.0,59524.0,2.00585824]
[1724253040737,0.00824,59525.0,59524.0,2.00585991]
[1724253040938,0.00824,59525.0,59524.0,2.38461763]
[1724253041150,0.00824,59525.0,59524.0,2.34433639]
[1724253041358,0.00824,59525.0,59524.0,2.35772205]
[1724253041561,0.00824,59525.0,59524.0,2.38572205]
[1724253041973,0.00824,59525.0,59524.0,2.41200317]
[1724253042180,0.00824,59525.0,59524.0,2.52100317]
[1724253042592,0.00824,59525.0,59524.0,2.53106089]
[1724253042835,0.00824,59525.0,59524.0,2.50477977]
[1724253043242,0.00824,59525.0,59524.0,2.49077977]
[1724253043443,0.00824,59525.0,59524.0,2.45733639]
[1724253043652,0.00824,59525.0,59524.0,1.54143839]
[1724253043851,0.00824,59525.0,59524.0,1.52743839]
[1724253044069,0.00824,59525.0,59524.0,1.51343839]
[1724253044268,0.00824,59525.0,59524.0,1.54243839]
[1724253044486,0.00824,59525.0,59524.0,1.54638067]
[1724253044698,0.00824,59525.0,59524.0,1.85043639]
[1724253044915,0.00824,59525.0,59524.0,1.86443639]
[1724253045317,0.00824,59525.0,59524.0,1.96443639]
[1724253045529,0.00824,59525.0,59524.0,1.61343839]
[1724253045943,0.00824,59525.0,59524.0,1.62743839]
[1724253046570,0.00824,59525.0,59524.0,1.64143839]
[1724253046968,0.00824,59525.0,59524.0,1.62743839]
[1724253047378,0.00822,59535.0,59534.0,1.333397]
[1724253047592,0.00822,59535.0,59534.0,1.86409998]
[1724253047798,0.00022877,59535.0,59534.0,2.54537803]
[1724253048013,7.7e-07,59539.0,59538.0,1.16603928]
[1724253048273,7.7e-07,59539.0,59538.0,2.83321057]
[1724253048495,7.7e-07,59539.0,59538.0,3.20243176]
[1724253049144,0.00822,59550.0,59549.0,1.512356]
[1724253049367,0.00822,59550.0,59549.0,2.45450014]
[1724253049574,0.00822,59550.0,59549.0,2.97583273]
[1724253049823,0.00822,59550.0,59549.0,3.21195567]
[1724253050066,0.00822,59550.0,59549.0,3.33651202]
[1724253050282,0.00822,59550.0,59549.0,3.31160124]
[1724253050502,0.00822,59550.0,59549.0,2.84983195]
[1724253050698,0.00822,59550.0,59549.0,2.92450718]
[1724253050927,0.00822,59550.0,59549.0,2.48703909]
[1724253051153,0.00822,59550.0,59549.0,2.57571432]
[1724253051380,0.00822,59550.0,59549.0,2.94805105]
[1724253051633,0.00822,59550.0,59549.0,2.59140877]
[1724253051866,0.00822,59550.0,59549.0,2.57371432]
[1724253052070,0.00822,59550.0,59549.0,2.57571432]
[1724253052276,0.00822,59550.0,59549.0,2.56477199]
[1724253052482,0.00822,59550.0,59549.0,2.58971432]
[1724253052690,0.00822,59550.0,59549.0,2.92557132]
[1724253052909,0.00822,59550.0,59549.0,2.91157132]
[1724253053112,0.00822,59550.0,59549.0,2.57565055]
[1724253053323,0.00822,59550.0,59549.0,2.12039681]
[1724253053545,0.00822,59550.0,59549.0,2.12139681]
[1724253053800,0.00822,59550.0,59549.0,1.37450086]
[1724253054048,0.01724801,59555.0,59554.0,0.503743]
[1724253054327,0.474705,59562.0,59555.0,0.503736]
[1724253054328,0.13892,59562.0,59555.0,0.503736]
[1724253054568,0.13892,59562.0,59555.0,0.84874835]
[1724253055037,0.13892,59562.0,59555.0,1.34857533]
[1724253055548,0.13892,59562.0,59555.0,0.51792435]
[1724253055786,0.306813,59562.0,59555.0,0.51792435]
[1724253056049,0.13892,59562.0,59555.0,1.01275133]
[1724253056539,0.306813,59562.0,59555.0,0.52192435]
[1724253056806,0.306813,59562.0,59555.0,0.51292435]
[1724253057039,0.107022,59556.0,59555.0,0.00918835]
[1724253057289,0.107022,59556.0,59555.0,0.01618835]
[1724253057530,0.107022,59556.0,59555.0,0.18210035]
[1724253057780,0.000822,59556.0,59555.0,0.52692435]
[1724253057984,0.168731,59556.0,59555.0,0.01818835]
[1724253058205,0.234122,59556.0,59555.0,0.00918835]
[1724253058407,0.127922,59556.0,59555.0,0.84256]
[1724253058832,0.127922,59556.0,59555.0,0.85174835]
[1724253059033,0.127922,59556.0,59555.0,0.84874835]
[1724253059237,0.127922,59556.0,59555.0,1.01775133]
[1724253059448,0.127922,59556.0,59555.0,1.36057533]
[1724253059666,0.127922,59556.0,59555.0,1.35357533]
[1724253060080,0.127922,59556.0,59555.0,1.36357533]
[1724253060289,0.127922,59556.0,59555.0,1.35357533]
[1724253060704,0.127922,59556.0,59555.0,1.36257533]
[1724253060906,0.127922,59556.0,59555.0,1.35457533]
[1724253061316,0.127922,59556.0,59555.0,1.36857533]
[1724253061528,0.127922,59556.0,59555.0,1.02675133]
[1724253061734,0.127922,59556.0,59555.0,1.03775133]
[1724253061977,0.127922,59556.0,59555.0,0.53792435]
[1724253062405,0.127922,59556.0,59555.0,0.52692435]
[1724253062607,0.127922,59556.0,59555.0,0.51292435]
[1724253062823,0.127922,59556.0,59555.0,0.87574835]
[1724253063034,0.000822,59556.0,59555.0,1.37557533]
[1724253063241,0.000822,59556.0,59555.0,1.36157533]
[1724253063480,0.000822,59556.0,59555.0,1.37457533]
[1724253063686,0.000822,59556.0,59555.0,0.87474835]
[1724253063895,0.00821,59558.0,59555.0,0.37101235]
[1724253064098,0.00821,59558.0,59557.0,0.503718]
[1724253064322,0.00821,59558.0,59557.0,1.01271411]
[1724253064537,0.00821,59558.0,59557.0,1.34852611]
[1724253064761,0.00822,59562.0,59558.0,0.50371]
[1724253064969,0.00822,59562.0,59558.0,1.3485045]
[1724253066191,0.00822,59562.0,59558.0,1.6843115]
[1724253066725,0.00822,59562.0,59558.0,1.3625045]
[1724253067092,0.00822,59562.0,59558.0,1.6983115]
[1724253067538,0.00822,59562.0,59558.0,1.6843115]
[1724253067887,0.00822,59562.0,59558.0,1.3735045]
[1724253068315,0.00822,59562.0,59558.0,1.0376975]
[1724253068542,0.00822,59562.0,59558.0,0.20208052]
[1724253069047,0.28688,59559.0,59558.0,0.02746637]
[1724253069247,0.11898,59559.0,59558.0,0.02746637]
[1724253069842,0.11898,59559.0,59558.0,0.19536937]
[1724253070093,0.11898,59559.0,59558.0,0.20936937]
[1724253070330,0.11898,59559.0,59558.0,0.19536937]
[1724253070436,0.11898,59559.0,59558.0,0.01346637]
[1724253070641,0.11898,59559.0,59558.0,0.01846637]
[1724253070844,0.11898,59559.0,59558.0,0.19236937]
[1724253071589,0.11898,59559.0,59558.0,0.01346637]
[1724253071787,0.11898,59559.0,59558.0,0.18436937]
[1724253071999,0.22018,59559.0,59558.0,0.01646637]
[1724253072205,1.060682,59559.0,59558.0,0.01646637]
[1724253072428,1.059682,59559.0,59558.0,0.009]
[1724253072652,0.22018,59559.0,59558.0,0.009]
[1724253072860,0.22018,59559.0,59558.0,0.176903]
[1724253073062,0.22018,59559.0,59558.0,0.51271]
[1724253073063,0.11898,59559.0,59558.0,0.51271]
[1724253073278,0.11898,59559.0,59558.0,0.85169452]
[1724253073697,0.11898,59559.0,59558.0,0.84869452]
[1724253074132,0.00822,59562.0,59561.0,0.503685]
[1724253074347,0.00822,59562.0,59561.0,1.33926798]
[1724253074565,0.00822,59562.0,59561.0,1.34843466]
[1724253074775,0.00822,59562.0,59561.0,0.84864168]
[1724253075400,0.00822,59562.0,59561.0,1.01264466]
[1724253075607,0.00822,59562.0,59561.0,1.51523466]
[1724253076667,0.14062,59576.0,59574.0,0.167857]
[1724253077105,0.00822,59576.0,59575.0,0.00911615]
[1724253077326,0.00822,59576.0,59575.0,0.17697115]
[1724253077552,0.00822,59576.0,59575.0,1.00327998]
[1724253077757,0.00822,59576.0,59575.0,1.34810713]
[1724253077969,0.00822,59576.0,59575.0,1.51050713]
[1724253078181,0.00822,59576.0,59575.0,1.34810713]
[1724253078379,0.00822,59576.0,59575.0,0.67668513]
[1724253078582,0.00822,59576.0,59575.0,1.01239613]
[1724253079217,0.00822,59576.0,59575.0,0.51268215]
[1724253080268,0.00822,59576.0,59575.0,0.52268215]
[1724253080471,0.00822,59576.0,59575.0,0.53568215]
[1724253080675,0.00822,59576.0,59575.0,0.51268215]
[1724253081133,0.00822,59576.0,59575.0,0.52968215]
[1724253081549,0.00822,59576.0,59575.0,0.18697115]
[1724253081760,0.00822,59576.0,59575.0,0.19125979]
[1724253081964,0.00822,59576.0,59575.0,0.53597079]
[1724253082563,0.00822,59576.0,59575.0,0.87168179]
[1724253082785,0.00822,59576.0,59575.0,0.86168179]
[1724253083265,0.00822,59576.0,59575.0,1.02818179]
[1724253083483,0.00822,59576.0,59575.0,1.55576201]
[1724253083692,0.00822,59576.0,59575.0,1.87819901]
[1724253083916,0.00822,59576.0,59575.0,1.89519901]
[1724253084119,0.00822,59585.0,59584.0,0.50349]
[1724253084350,0.00822,59585.0,59584.0,0.83915]
[1724253084607,0.00822,59585.0,59584.0,1.87443115]
[1724253085637,0.00822,59585.0,59584.0,1.99964401]
[1724253085845,0.00822,59585.0,59584.0,1.99723115]
[1724253088143,0.00841,59599.0,59598.0,0.503371]
[1724253088348,0.00841,59599.0,59598.0,0.16779]
[1724253088555,0.00841,59599.0,59598.0,0.503371]
[1724253088970,0.00841,59599.0,59598.0,0.838952]
[1724253089797,0.00841,59599.0,59598.0,0.503371]
[1724253090005,0.00841,59599.0,59597.0,0.00428741]
[1724253090211,0.610971,59598.0,59597.0,0.00428741]
[1724253090418,1.077552,59598.0,59597.0,0.00428741]
[1724253090636,1.076552,59598.0,59597.0,0.00428741]
[1724253090907,0.276198,59599.0,59591.0,0.335616]
[1724253091078,0.1076,59598.0,59591.0,0.33562]
[1724253091285,0.167799,59596.0,59586.0,0.1622]
[1724253091495,0.167795,59597.0,59593.0,0.167803]
[1724253091906,0.1076,59598.0,59586.0,0.1622]
[1724253091907,0.00336276,59596.0,59586.0,0.1622]
[1724253092108,0.167809,59592.0,59586.0,0.335647]
[1724253092320,0.00336276,59591.0,59579.0,0.05005955]
[1724253092525,0.335626,59590.0,59584.0,0.167828]
[1724253092728,0.1276,59593.0,59582.0,0.335671]
[1724253092938,0.167823,59587.0,59577.0,0.16400298]
[1724253093154,0.167825,59586.0,59582.0,0.167834]
[1724253093406,0.2443,59584.0,59581.0,0.167837]
[1724253093576,0.1367,59589.0,59575.0,0.1568]